[Event "*** SCC Grand Prix: Titled Tuesday Blitz"]
[Site "Chess.com"]
[Date "2020.06.09"]
[Round "9"]
[White "quesfr"]
[Black "parnali1611"]
[Result "0-1"]
[WhiteElo "2217"]
[BlackElo "2061"]
[TimeControl "180+1"]
[EndTime "10:45:51 PDT"]
[Termination "parnali1611 won by resignation"]

1. e4 {[%clk 0:03:00.9]} 1... e5 {[%clk 0:02:59.1]} 2. Nf3 {[%clk 0:03:00]} 2...
Nc6 {[%clk 0:03:00]} 3. Bb5 {[%clk 0:02:59.5]} 3... a6 {[%clk 0:02:59.1]} 4. Ba4
{[%clk 0:02:59.6]} 4... Nf6 {[%clk 0:02:58.3]} 5. O-O {[%clk 0:02:59.7]} 5... b5
{[%clk 0:02:58.8]} 6. Bb3 {[%clk 0:02:59.2]} 6... Bc5 {[%clk 0:02:59.4]} 7. c3
{[%clk 0:02:58.7]} 7... d6 {[%clk 0:02:57.5]} 8. d4 {[%clk 0:02:44.1]} 8... Bb6
{[%clk 0:02:56.6]} 9. h3 {[%clk 0:02:36.9]} 9... h6 {[%clk 0:02:54.7]} 10. a4
{[%clk 0:02:36.4]} 10... Rb8 {[%clk 0:02:52.3]} 11. Re1 {[%clk 0:02:33.2]} 11...
O-O {[%clk 0:02:47.8]} 12. Na3 {[%clk 0:02:19.9]} 12... b4 {[%clk 0:02:41]} 13.
Nc4 {[%clk 0:02:18.1]} 13... bxc3 {[%clk 0:02:38.2]} 14. bxc3 {[%clk 0:02:16.6]}
14... exd4 {[%clk 0:02:37.9]} 15. Nxb6 {[%clk 0:02:05.4]} 15... Rxb6 {[%clk
0:02:34]} 16. cxd4 {[%clk 0:02:03.4]} 16... d5 {[%clk 0:02:28.5]} 17. Ba3 {[%clk
0:01:15.2]} 17... Re8 {[%clk 0:02:27]} 18. exd5 {[%clk 0:01:09.4]} 18... Rxe1+
{[%clk 0:02:21.6]} 19. Qxe1 {[%clk 0:01:09.6]} 19... Rxb3 {[%clk 0:02:08.1]} 20.
dxc6 {[%clk 0:01:09.8]} 20... Bxh3 {[%clk 0:02:05.7]} 21. Be7 {[%clk 0:01:00.5]}
21... Qd5 {[%clk 0:02:02.2]} 22. Bxf6 {[%clk 0:00:55.2]} 22... gxf6 {[%clk
0:01:54.7]} 23. Qe2 {[%clk 0:00:17.3]} 23... Kg7 {[%clk 0:01:46.5]} 24. Re1
{[%clk 0:00:10.3]} 24... Bg4 {[%clk 0:01:44.8]} 25. Qe4 {[%clk 0:00:10.5]} 25...
Bxf3 {[%clk 0:01:36.9]} 26. gxf3 {[%clk 0:00:11.4]} 26... Qg5+ {[%clk
0:01:35.1]} 27. Kh1 {[%clk 0:00:10.2]} 27... Qh5+ {[%clk 0:01:31.1]} 28. Kg2
{[%clk 0:00:10.2]} 28... f5 {[%clk 0:01:24.1]} 29. Qe5+ {[%clk 0:00:08.8]} 29...
Kh7 {[%clk 0:01:22.6]} 30. Qxc7 {[%clk 0:00:08.7]} 30... Qxf3+ {[%clk
0:01:21.3]} 31. Kg1 {[%clk 0:00:08]} 31... Qg4+ {[%clk 0:01:19.9]} 32. Kf1
{[%clk 0:00:07.8]} 32... Qh3+ {[%clk 0:01:18.4]} 33. Kg1 {[%clk 0:00:08.1]}
33... Qg4+ {[%clk 0:01:16.2]} 34. Kf1 {[%clk 0:00:07.5]} 34... Qh3+ {[%clk
0:01:12.2]} 35. Kg1 {[%clk 0:00:07.8]} 35... Qh5 {[%clk 0:01:11.8]} 36. Qh2
{[%clk 0:00:06.9]} 36... Rh3 {[%clk 0:01:10.5]} 37. Qg2 {[%clk 0:00:06.8]} 37...
Rh4 {[%clk 0:01:08.6]} 38. Re3 {[%clk 0:00:05.9]} 38... Qd1+ {[%clk 0:01:04.2]}
39. Qf1 {[%clk 0:00:05.5]} 39... Rh1+ {[%clk 0:01:03.9]} 40. Kxh1 {[%clk
0:00:05.9]} 40... Qxf1+ {[%clk 0:01:03.8]} 41. Kh2 {[%clk 0:00:06.4]} 41...
Qxf2+ {[%clk 0:01:04.3]} 42. Kh1 {[%clk 0:00:06.8]} 42... Qxe3 {[%clk
0:01:04.4]} 43. c7 {[%clk 0:00:07]} 43... Qc1+ {[%clk 0:01:03.9]} 0-1

[Event "*** SCC Grand Prix: Titled Tuesday Blitz"]
[Site "Chess.com"]
[Date "2020.06.09"]
[Round "9"]
[White "mr65"]
[Black "j2806"]
[Result "0-1"]
[WhiteElo "2145"]
[BlackElo "2033"]
[TimeControl "180+1"]
[EndTime "10:45:51 PDT"]
[Termination "j2806 won by resignation"]

1. e4 {[%clk 0:03:00.9]} 1... c5 {[%clk 0:02:54]} 2. d4 {[%clk 0:03:00.1]} 2...
cxd4 {[%clk 0:02:53.9]} 3. c3 {[%clk 0:03:00]} 3... dxc3 {[%clk 0:02:54.4]} 4.
Nxc3 {[%clk 0:03:00]} 4... Nc6 {[%clk 0:02:54.9]} 5. Nf3 {[%clk 0:02:59.9]} 5...
d6 {[%clk 0:02:55.4]} 6. Bc4 {[%clk 0:02:59.4]} 6... e6 {[%clk 0:02:56.1]} 7.
O-O {[%clk 0:02:58.3]} 7... Nf6 {[%clk 0:02:56.3]} 8. Qe2 {[%clk 0:02:58.3]}
8... a6 {[%clk 0:02:56.8]} 9. Rd1 {[%clk 0:02:58.2]} 9... Qc7 {[%clk 0:02:57.3]}
10. Bf4 {[%clk 0:02:56.2]} 10... Ne5 {[%clk 0:02:57.8]} 11. Bxe5 {[%clk
0:02:54.9]} 11... dxe5 {[%clk 0:02:57.8]} 12. Rac1 {[%clk 0:02:54.5]} 12... Qb8
{[%clk 0:02:57.5]} 13. Nb5 {[%clk 0:02:49.2]} 13... axb5 {[%clk 0:02:46.2]} 14.
Bxb5+ {[%clk 0:02:48.2]} 14... Bd7 {[%clk 0:02:44.3]} 15. Bxd7+ {[%clk
0:02:45.4]} 15... Nxd7 {[%clk 0:02:41.6]} 16. Qb5 {[%clk 0:02:44.9]} 16... Bd6
{[%clk 0:02:23]} 17. Rc3 {[%clk 0:02:26.2]} 17... Ra6 {[%clk 0:02:13.8]} 18.
Rcd3 {[%clk 0:02:21.4]} 18... Ke7 {[%clk 0:01:58.8]} 19. Nxe5 {[%clk 0:02:15.8]}
19... Nxe5 {[%clk 0:01:52.5]} 20. R3d2 {[%clk 0:01:51.5]} 20... Ng6 {[%clk
0:01:35.6]} 21. f4 {[%clk 0:01:44.4]} 21... Nxf4 {[%clk 0:01:27.4]} 22. e5
{[%clk 0:01:42.4]} 22... Bxe5 {[%clk 0:01:14.3]} 23. Rd7+ {[%clk 0:01:40.7]}
23... Kf6 {[%clk 0:01:11.7]} 24. Rxb7 {[%clk 0:01:37.4]} 24... Qa8 {[%clk
0:01:05.1]} 25. Rdd7 {[%clk 0:01:26.9]} 25... Rf8 {[%clk 0:00:58]} 26. g3 {[%clk
0:01:26.4]} 26... Nd5 {[%clk 0:00:51.6]} 27. Qf1+ {[%clk 0:01:17.2]} 27... Kg6
{[%clk 0:00:33]} 28. Rxf7 {[%clk 0:01:16.3]} 28... Bd4+ {[%clk 0:00:27]} 29. Kh1
{[%clk 0:01:11]} 29... Bf6 {[%clk 0:00:26]} 30. Qd3+ {[%clk 0:01:03]} 30... Kh6
{[%clk 0:00:22.2]} 31. Qd2+ {[%clk 0:00:50.3]} 31... Bg5 {[%clk 0:00:19.4]} 32.
Qg2 {[%clk 0:00:36.9]} 32... Rxf7 {[%clk 0:00:18.2]} 33. Rxf7 {[%clk 0:00:34.2]}
33... Ne3 {[%clk 0:00:18.1]} 34. Qxa8 {[%clk 0:00:30.5]} 34... Rxa8 {[%clk
0:00:18.2]} 0-1

[Event "*** SCC Grand Prix: Titled Tuesday Blitz"]
[Site "Chess.com"]
[Date "2020.06.09"]
[Round "9"]
[White "StephenDedalus83"]
[Black "TregubovP"]
[Result "1-0"]
[WhiteElo "2736"]
[BlackElo "2565"]
[TimeControl "180+1"]
[EndTime "10:45:53 PDT"]
[Termination "StephenDedalus83 won by resignation"]

1. e4 {[%clk 0:03:00.9]} 1... e6 {[%clk 0:02:57.6]} 2. d4 {[%clk 0:02:59.7]}
2... d5 {[%clk 0:02:58]} 3. Nc3 {[%clk 0:03:00.2]} 3... Bb4 {[%clk 0:02:57.3]}
4. e5 {[%clk 0:02:59.5]} 4... c5 {[%clk 0:02:56.5]} 5. a3 {[%clk 0:03:00.1]}
5... Ba5 {[%clk 0:02:55.6]} 6. b4 {[%clk 0:02:58.8]} 6... cxd4 {[%clk
0:02:55.1]} 7. Qg4 {[%clk 0:02:58.6]} 7... Kf8 {[%clk 0:02:51.3]} 8. bxa5 {[%clk
0:02:57.1]} 8... dxc3 {[%clk 0:02:49.2]} 9. Nf3 {[%clk 0:02:55.6]} 9... Nc6
{[%clk 0:02:39.9]} 10. Bd3 {[%clk 0:02:54.5]} 10... f6 {[%clk 0:02:35.5]} 11.
Bf4 {[%clk 0:02:41.9]} 11... fxe5 {[%clk 0:02:04.9]} 12. Nxe5 {[%clk 0:02:41.2]}
12... Qf6 {[%clk 0:02:04.2]} 13. Nxc6 {[%clk 0:02:28.3]} 13... bxc6 {[%clk
0:02:02.1]} 14. Qg3 {[%clk 0:02:28.7]} 14... Ne7 {[%clk 0:01:53.6]} 15. Be5
{[%clk 0:02:26.4]} 15... Qf7 {[%clk 0:01:53.8]} 16. O-O {[%clk 0:02:24.5]} 16...
c5 {[%clk 0:01:45]} 17. Rfe1 {[%clk 0:02:12.6]} 17... c4 {[%clk 0:01:44]} 18.
Bf1 {[%clk 0:02:12.5]} 18... h5 {[%clk 0:01:40.4]} 19. Qxc3 {[%clk 0:02:09.6]}
19... Rh6 {[%clk 0:01:38.8]} 20. Qb4 {[%clk 0:02:02.3]} 20... Kg8 {[%clk
0:01:36.5]} 21. Qd6 {[%clk 0:01:55.5]} 21... Nf5 {[%clk 0:01:28.6]} 22. Qc5
{[%clk 0:01:46.6]} 22... Ba6 {[%clk 0:01:17.4]} 23. Qc6 {[%clk 0:01:37.2]} 23...
Bb7 {[%clk 0:01:16.5]} 24. Qb5 {[%clk 0:01:37]} 24... Rf8 {[%clk 0:01:14]} 25.
Rab1 {[%clk 0:01:24.8]} 25... Bc8 {[%clk 0:01:13.2]} 26. Qc5 {[%clk 0:01:15.7]}
26... h4 {[%clk 0:01:00.3]} 27. Rb8 {[%clk 0:01:13.2]} 27... Qd7 {[%clk
0:00:37.3]} 28. Rd1 {[%clk 0:01:03.5]} 28... Rg6 {[%clk 0:00:22.5]} 29. Bxc4
{[%clk 0:01:00.5]} 29... h3 {[%clk 0:00:18.9]} 30. g3 {[%clk 0:00:57.1]} 30...
Nh4 {[%clk 0:00:18.6]} 31. Be2 {[%clk 0:00:57]} 31... Rg5 {[%clk 0:00:15]} 32.
f4 {[%clk 0:00:53.6]} 32... Rxe5 {[%clk 0:00:13.1]} 33. fxe5 {[%clk 0:00:53.3]}
33... Ng6 {[%clk 0:00:12.2]} 34. Bb5 {[%clk 0:00:45.7]} 34... Qf7 {[%clk
0:00:07.2]} 35. Rf1 {[%clk 0:00:45.2]} 1-0

[Event "*** SCC Grand Prix: Titled Tuesday Blitz"]
[Site "Chess.com"]
[Date "2020.06.09"]
[Round "9"]
[White "crazy_but_lazy"]
[Black "KNVB"]
[Result "0-1"]
[WhiteElo "2418"]
[BlackElo "2681"]
[TimeControl "180+1"]
[EndTime "10:45:54 PDT"]
[Termination "KNVB won by resignation"]

1. d4 {[%clk 0:03:00.9]} 1... b6 {[%clk 0:03:00.9]} 2. c4 {[%clk 0:02:58.8]}
2... Bb7 {[%clk 0:03:01.8]} 3. Nc3 {[%clk 0:02:58.5]} 3... e6 {[%clk 0:03:02.4]}
4. e4 {[%clk 0:02:58.2]} 4... Bb4 {[%clk 0:03:02.4]} 5. Bd3 {[%clk 0:02:56.1]}
5... f5 {[%clk 0:03:00.4]} 6. Qe2 {[%clk 0:02:12.2]} 6... Nf6 {[%clk 0:02:59.6]}
7. Bg5 {[%clk 0:02:12]} 7... h6 {[%clk 0:02:30.9]} 8. Bxf6 {[%clk 0:01:23.3]}
8... Qxf6 {[%clk 0:02:31.8]} 9. e5 {[%clk 0:01:23.9]} 9... Qh4 {[%clk
0:02:26.4]} 10. Nf3 {[%clk 0:01:19.8]} 10... Bxf3 {[%clk 0:02:26.4]} 11. Qxf3
{[%clk 0:01:20.4]} 11... Nc6 {[%clk 0:02:27]} 12. d5 {[%clk 0:01:13.6]} 12...
Nxe5 {[%clk 0:02:26]} 13. Qe2 {[%clk 0:01:06.9]} 13... Qd4 {[%clk 0:02:19.9]}
14. Rd1 {[%clk 0:00:29.3]} 14... Bxc3+ {[%clk 0:02:10.5]} 15. bxc3 {[%clk
0:00:29.5]} 15... Qxc3+ {[%clk 0:02:06.8]} 16. Kf1 {[%clk 0:00:30]} 16... O-O-O
{[%clk 0:01:27.8]} 17. g3 {[%clk 0:00:21.1]} 17... Nxd3 {[%clk 0:01:15.5]} 18.
Rxd3 {[%clk 0:00:16.5]} 18... Qxc4 {[%clk 0:01:15.7]} 19. Kg2 {[%clk 0:00:17.1]}
19... Qe4+ {[%clk 0:01:13.6]} 20. Qxe4 {[%clk 0:00:17.1]} 20... fxe4 {[%clk
0:01:14.5]} 21. Rd4 {[%clk 0:00:18]} 21... exd5 {[%clk 0:01:13.8]} 22. Rxd5
{[%clk 0:00:18.9]} 22... Rhe8 {[%clk 0:01:07.1]} 23. Rc1 {[%clk 0:00:19.5]}
23... c6 {[%clk 0:01:05.2]} 24. Rd6 {[%clk 0:00:17.9]} 24... Kc7 {[%clk
0:01:05.2]} 25. Rcd1 {[%clk 0:00:17]} 25... Re6 {[%clk 0:01:00.2]} 26. R6d4
{[%clk 0:00:15.1]} 26... d5 {[%clk 0:00:58.9]} 27. h4 {[%clk 0:00:14.7]} 27...
h5 {[%clk 0:00:56.8]} 28. R1d2 {[%clk 0:00:12]} 28... b5 {[%clk 0:00:56.8]} 29.
a4 {[%clk 0:00:11]} 29... a6 {[%clk 0:00:56.3]} 30. axb5 {[%clk 0:00:10.5]}
30... axb5 {[%clk 0:00:57.2]} 31. Ra2 {[%clk 0:00:11.1]} 31... Kb6 {[%clk
0:00:57.9]} 32. Rc2 {[%clk 0:00:10.4]} 32... c5 {[%clk 0:00:57.9]} 33. Rd1
{[%clk 0:00:10.5]} 33... c4 {[%clk 0:00:48.9]} 34. Re1 {[%clk 0:00:08.6]} 34...
Kc5 {[%clk 0:00:47.6]} 35. Rxc4+ {[%clk 0:00:05.5]} 0-1

[Event "*** SCC Grand Prix: Titled Tuesday Blitz"]
[Site "Chess.com"]
[Date "2020.06.09"]
[Round "9"]
[White "kingmonkey2006"]
[Black "zajka-molotok"]
[Result "1-0"]
[WhiteElo "2571"]
[BlackElo "2385"]
[TimeControl "180+1"]
[EndTime "10:45:57 PDT"]
[Termination "kingmonkey2006 won by resignation"]

1. e4 {[%clk 0:03:00.5]} 1... d6 {[%clk 0:02:58.4]} 2. d4 {[%clk 0:02:59.3]}
2... Nf6 {[%clk 0:02:58.3]} 3. Nc3 {[%clk 0:02:58.8]} 3... c6 {[%clk 0:02:58.4]}
4. Nf3 {[%clk 0:02:55.3]} 4... Bg4 {[%clk 0:02:57.6]} 5. Be2 {[%clk 0:02:55.2]}
5... e6 {[%clk 0:02:57.2]} 6. O-O {[%clk 0:02:55.1]} 6... Be7 {[%clk 0:02:57.5]}
7. h3 {[%clk 0:02:52.4]} 7... Bxf3 {[%clk 0:02:57.1]} 8. Bxf3 {[%clk 0:02:53.3]}
8... d5 {[%clk 0:02:57.6]} 9. e5 {[%clk 0:02:51.5]} 9... Nfd7 {[%clk 0:02:57.2]}
10. Ne2 {[%clk 0:02:48.7]} 10... O-O {[%clk 0:02:56.5]} 11. g3 {[%clk
0:02:41.5]} 11... c5 {[%clk 0:02:32.8]} 12. c3 {[%clk 0:02:32.6]} 12... Nc6
{[%clk 0:02:32.3]} 13. Bg2 {[%clk 0:02:33]} 13... Qb6 {[%clk 0:02:26.6]} 14. a3
{[%clk 0:02:29.3]} 14... Rac8 {[%clk 0:02:21.7]} 15. b4 {[%clk 0:02:25]} 15...
cxd4 {[%clk 0:02:20.6]} 16. cxd4 {[%clk 0:02:24.6]} 16... a5 {[%clk 0:02:20.7]}
17. bxa5 {[%clk 0:02:24.2]} 17... Nxa5 {[%clk 0:02:19.4]} 18. Qa4 {[%clk
0:02:19.5]} 18... Rfd8 {[%clk 0:02:06.8]} 19. Be3 {[%clk 0:02:17.7]} 19... Nc4
{[%clk 0:01:56.5]} 20. Rab1 {[%clk 0:02:13.3]} 20... Qc6 {[%clk 0:01:54.6]} 21.
Qb3 {[%clk 0:02:05.4]} 21... Nxa3 {[%clk 0:01:47.5]} 22. Ra1 {[%clk 0:02:04.8]}
22... Nc4 {[%clk 0:01:46.4]} 23. f4 {[%clk 0:01:59.9]} 23... g6 {[%clk
0:01:30.9]} 24. g4 {[%clk 0:01:58.6]} 24... Qb6 {[%clk 0:01:21.1]} 25. Qd3
{[%clk 0:01:58.2]} 25... Nxe3 {[%clk 0:01:15.6]} 26. Qxe3 {[%clk 0:01:58.3]}
26... Rc2 {[%clk 0:01:13.8]} 27. f5 {[%clk 0:01:57.5]} 27... Qb2 {[%clk
0:00:56.6]} 28. Bf3 {[%clk 0:01:24.7]} 28... Rdc8 {[%clk 0:00:27.5]} 29. Rab1
{[%clk 0:01:19.3]} 29... Qa2 {[%clk 0:00:25.6]} 30. Rxb7 {[%clk 0:01:18.5]}
30... R8c7 {[%clk 0:00:22.8]} 31. Rxc7 {[%clk 0:01:15.1]} 31... Rxc7 {[%clk
0:00:21.8]} 32. Nf4 {[%clk 0:01:13.2]} 32... Bg5 {[%clk 0:00:18.2]} 33. h4
{[%clk 0:01:08.7]} 33... Bxf4 {[%clk 0:00:17.4]} 34. Qxf4 {[%clk 0:01:09.6]}
34... Nf8 {[%clk 0:00:15.5]} 35. f6 {[%clk 0:01:08.6]} 35... Qb2 {[%clk
0:00:13.1]} 36. Qh6 {[%clk 0:01:05.2]} 36... Qxd4+ {[%clk 0:00:12.8]} 37. Kh1
{[%clk 0:01:05.9]} 1-0

[Event "*** SCC Grand Prix: Titled Tuesday Blitz"]
[Site "Chess.com"]
[Date "2020.06.09"]
[Round "9"]
[White "Tesla37"]
[Black "chito89"]
[Result "0-1"]
[WhiteElo "2914"]
[BlackElo "2778"]
[TimeControl "180+1"]
[EndTime "10:46:02 PDT"]
[Termination "chito89 won by resignation"]

1. e4 {[%clk 0:03:00.9]} 1... Nc6 {[%clk 0:02:55.7]} 2. Nf3 {[%clk 0:02:59.7]}
2... d6 {[%clk 0:02:55.4]} 3. d4 {[%clk 0:02:59.6]} 3... Nf6 {[%clk 0:02:55.4]}
4. Nc3 {[%clk 0:02:58.6]} 4... Bg4 {[%clk 0:02:56]} 5. Be3 {[%clk 0:02:57.1]}
5... e6 {[%clk 0:02:56.2]} 6. h3 {[%clk 0:02:56.1]} 6... Bh5 {[%clk 0:02:56.1]}
7. Qe2 {[%clk 0:02:53]} 7... d5 {[%clk 0:02:38.7]} 8. e5 {[%clk 0:02:39.2]} 8...
Ne4 {[%clk 0:02:28.6]} 9. g4 {[%clk 0:02:35.7]} 9... Bg6 {[%clk 0:02:18.2]} 10.
Bg2 {[%clk 0:02:30.8]} 10... Bb4 {[%clk 0:02:15.5]} 11. O-O {[%clk 0:02:21.2]}
11... Nxc3 {[%clk 0:01:58]} 12. bxc3 {[%clk 0:02:20.2]} 12... Bxc3 {[%clk
0:01:58.8]} 13. Rab1 {[%clk 0:02:20.6]} 13... Ba5 {[%clk 0:01:59.5]} 14. Rxb7
{[%clk 0:02:09.3]} 14... Bb6 {[%clk 0:01:58.7]} 15. Qb5 {[%clk 0:02:04]} 15...
Qd7 {[%clk 0:01:57.2]} 16. c4 {[%clk 0:02:01.9]} 16... Na5 {[%clk 0:01:34.9]}
17. Qa6 {[%clk 0:01:38.5]} 17... Nxb7 {[%clk 0:01:31.1]} 18. Qxb7 {[%clk
0:01:37.3]} 18... O-O {[%clk 0:01:26.1]} 19. c5 {[%clk 0:01:35.7]} 19... Bd3
{[%clk 0:00:29.3]} 20. cxb6 {[%clk 0:01:34.7]} 20... Bxf1 {[%clk 0:00:27.9]} 21.
Bxf1 {[%clk 0:01:16.8]} 21... axb6 {[%clk 0:00:28]} 22. a4 {[%clk 0:01:17]}
22... Rxa4 {[%clk 0:00:24]} 23. Ba6 {[%clk 0:01:08]} 23... Ra1+ {[%clk
0:00:17.2]} 24. Kg2 {[%clk 0:01:07.1]} 24... Qa4 {[%clk 0:00:17.7]} 25. Bd3
{[%clk 0:00:46.1]} 25... Qd1 {[%clk 0:00:17.7]} 26. Bd2 {[%clk 0:00:45.1]} 26...
Ra3 {[%clk 0:00:15.4]} 27. Be4 {[%clk 0:00:22.8]} 27... dxe4 {[%clk 0:00:14.3]}
28. Qxe4 {[%clk 0:00:22.2]} 28... Rxf3 {[%clk 0:00:14.3]} 0-1

[Event "*** SCC Grand Prix: Titled Tuesday Blitz"]
[Site "Chess.com"]
[Date "2020.06.09"]
[Round "9"]
[White "jacky72"]
[Black "MomchilPetkov"]
[Result "1-0"]
[WhiteElo "2688"]
[BlackElo "2540"]
[TimeControl "180+1"]
[EndTime "10:46:02 PDT"]
[Termination "jacky72 won on time"]

1. Nc3 {[%clk 0:03:00.9]} 1... d5 {[%clk 0:02:56.9]} 2. d4 {[%clk 0:03:00]} 2...
c6 {[%clk 0:02:55.9]} 3. Bf4 {[%clk 0:03:00.1]} 3... Nf6 {[%clk 0:02:53.5]} 4.
Qd3 {[%clk 0:02:59.9]} 4... g6 {[%clk 0:02:49.2]} 5. f3 {[%clk 0:02:59.4]} 5...
Bg7 {[%clk 0:02:49.3]} 6. e4 {[%clk 0:02:59.8]} 6... dxe4 {[%clk 0:02:46.9]} 7.
fxe4 {[%clk 0:02:59.8]} 7... Nh5 {[%clk 0:02:41.9]} 8. Be3 {[%clk 0:02:59.2]}
8... e5 {[%clk 0:02:41.5]} 9. d5 {[%clk 0:02:57.8]} 9... O-O {[%clk 0:02:37.6]}
10. O-O-O {[%clk 0:02:55.2]} 10... Nf4 {[%clk 0:02:29.9]} 11. Qd2 {[%clk
0:02:51.2]} 11... cxd5 {[%clk 0:02:25.6]} 12. Nxd5 {[%clk 0:02:49.7]} 12... Nxd5
{[%clk 0:02:24.8]} 13. Qxd5 {[%clk 0:02:50.6]} 13... Nc6 {[%clk 0:02:17.8]} 14.
Qxd8 {[%clk 0:02:49.6]} 14... Rxd8 {[%clk 0:02:16.7]} 15. Rxd8+ {[%clk 0:02:50]}
15... Nxd8 {[%clk 0:02:17.6]} 16. Bc4 {[%clk 0:02:50.5]} 16... Be6 {[%clk
0:02:16.8]} 17. Bxe6 {[%clk 0:02:50.8]} 17... Nxe6 {[%clk 0:02:17.7]} 18. Nf3
{[%clk 0:02:51.7]} 18... a6 {[%clk 0:02:10.8]} 19. Rd1 {[%clk 0:02:48.7]} 19...
Rd8 {[%clk 0:02:09.9]} 20. Rxd8+ {[%clk 0:02:47.9]} 20... Nxd8 {[%clk
0:02:10.8]} 21. c4 {[%clk 0:02:48.7]} 21... Ne6 {[%clk 0:02:02.2]} 22. Kc2
{[%clk 0:02:48.4]} 22... f5 {[%clk 0:02:02.6]} 23. Kd3 {[%clk 0:02:47.4]} 23...
Kf7 {[%clk 0:01:53.2]} 24. b4 {[%clk 0:02:46.7]} 24... f4 {[%clk 0:01:48.2]} 25.
Bb6 {[%clk 0:02:44]} 25... g5 {[%clk 0:01:48.1]} 26. a4 {[%clk 0:02:42.3]} 26...
g4 {[%clk 0:01:47.1]} 27. Ne1 {[%clk 0:02:40.8]} 27... Bf6 {[%clk 0:01:41.2]}
28. c5 {[%clk 0:02:40.6]} 28... h5 {[%clk 0:01:23.5]} 29. a5 {[%clk 0:02:35.2]}
29... Nd4 {[%clk 0:01:17.6]} 30. Nc2 {[%clk 0:02:31.4]} 30... Nxc2 {[%clk
0:01:11.9]} 31. Kxc2 {[%clk 0:02:32.3]} 31... h4 {[%clk 0:01:11.2]} 32. b5
{[%clk 0:02:31.1]} 32... f3 {[%clk 0:00:52.4]} 33. gxf3 {[%clk 0:02:21.5]} 33...
g3 {[%clk 0:00:49.1]} 34. hxg3 {[%clk 0:02:22.4]} 34... h3 {[%clk 0:00:49.3]}
35. c6 {[%clk 0:02:23]} 35... h2 {[%clk 0:00:45.2]} 36. cxb7 {[%clk 0:02:22.9]}
36... h1=Q {[%clk 0:00:44.5]} 37. b8=Q {[%clk 0:02:23.1]} 37... Qg2+ {[%clk
0:00:45.4]} 38. Kc3 {[%clk 0:02:22.3]} 38... Qxf3+ {[%clk 0:00:45.2]} 39. Kd2
{[%clk 0:02:18]} 39... Bg5+ {[%clk 0:00:43]} 40. Ke1 {[%clk 0:02:15.5]} 40...
Qxe4+ {[%clk 0:00:38.4]} 41. Kf2 {[%clk 0:02:14]} 41... Qc2+ {[%clk 0:00:33.5]}
42. Kf3 {[%clk 0:02:14.5]} 42... Qf5+ {[%clk 0:00:23.1]} 43. Kg2 {[%clk
0:02:14.9]} 43... Qe4+ {[%clk 0:00:21.2]} 44. Kh3 {[%clk 0:02:15.2]} 44... Qf5+
{[%clk 0:00:18.6]} 45. Kh2 {[%clk 0:02:15.3]} 45... Qc2+ {[%clk 0:00:17.7]} 46.
Kg1 {[%clk 0:02:15.5]} 46... Qb1+ {[%clk 0:00:17.3]} 47. Kf2 {[%clk 0:02:14.1]}
47... Qxb5 {[%clk 0:00:18.2]} 48. Qc7+ {[%clk 0:02:10.3]} 48... Be7 {[%clk
0:00:18]} 49. g4 {[%clk 0:02:06.4]} 49... Ke6 {[%clk 0:00:17.6]} 50. Qc2 {[%clk
0:02:03.3]} 50... Kd7 {[%clk 0:00:07.2]} 51. g5 {[%clk 0:02:02]} 51... Qb4
{[%clk 0:00:04.7]} 52. Qf5+ {[%clk 0:02:00.5]} 52... Ke8 {[%clk 0:00:05.6]} 53.
Qg6+ {[%clk 0:01:54.8]} 53... Kd7 {[%clk 0:00:05.7]} 54. Qd3+ {[%clk 0:01:55.2]}
54... Ke8 {[%clk 0:00:06.2]} 55. g6 {[%clk 0:01:55.8]} 55... Qf4+ {[%clk
0:00:06.4]} 56. Ke2 {[%clk 0:01:56.4]} 56... e4 {[%clk 0:00:06.4]} 57. Qh3
{[%clk 0:01:37.1]} 57... Qg4+ {[%clk 0:00:07.3]} 58. Qxg4 {[%clk 0:01:37.3]} 1-0

[Event "*** SCC Grand Prix: Titled Tuesday Blitz"]
[Site "Chess.com"]
[Date "2020.06.09"]
[Round "9"]
[White "Alopekos"]
[Black "novendrapriasmoro"]
[Result "1-0"]
[WhiteElo "2510"]
[BlackElo "2648"]
[TimeControl "180+1"]
[EndTime "10:46:02 PDT"]
[Termination "Alopekos won by checkmate"]

1. e4 {[%clk 0:03:00.9]} 1... c5 {[%clk 0:02:59.9]} 2. Nc3 {[%clk 0:03:00.6]}
2... Nc6 {[%clk 0:03:00]} 3. Nge2 {[%clk 0:03:00.7]} 3... g6 {[%clk 0:03:00.1]}
4. d4 {[%clk 0:03:00.8]} 4... cxd4 {[%clk 0:03:01]} 5. Nxd4 {[%clk 0:03:01.7]}
5... Bg7 {[%clk 0:03:01.6]} 6. Nxc6 {[%clk 0:03:02.4]} 6... bxc6 {[%clk
0:03:02.5]} 7. Bc4 {[%clk 0:03:02.8]} 7... d6 {[%clk 0:03:02.1]} 8. Qf3 {[%clk
0:03:02.6]} 8... Nf6 {[%clk 0:03:01]} 9. e5 {[%clk 0:03:03.1]} 9... dxe5 {[%clk
0:03:01.9]} 10. Qxc6+ {[%clk 0:03:02.9]} 10... Bd7 {[%clk 0:03:02.3]} 11. Qa6
{[%clk 0:03:03.6]} 11... O-O {[%clk 0:03:01.6]} 12. O-O {[%clk 0:03:04.1]} 12...
Qc7 {[%clk 0:03:00.3]} 13. Bb3 {[%clk 0:03:04.7]} 13... e4 {[%clk 0:03:00]} 14.
h3 {[%clk 0:03:04.4]} 14... Rac8 {[%clk 0:02:55.7]} 15. Be3 {[%clk 0:02:59.4]}
15... Ra8 {[%clk 0:02:47.5]} 16. Rad1 {[%clk 0:02:53.5]} 16... Rfd8 {[%clk
0:02:32]} 17. Rd2 {[%clk 0:02:48.3]} 17... Bc8 {[%clk 0:02:08.1]} 18. Qc4 {[%clk
0:02:46.7]} 18... Qa5 {[%clk 0:01:35.3]} 19. Qc5 {[%clk 0:01:49]} 19... Rxd2
{[%clk 0:00:38.7]} 20. Qxa5 {[%clk 0:01:47.8]} 20... Rd6 {[%clk 0:00:38.8]} 21.
Rd1 {[%clk 0:00:52.8]} 21... Rxd1+ {[%clk 0:00:37.9]} 22. Nxd1 {[%clk
0:00:53.7]} 22... Bd7 {[%clk 0:00:38.3]} 23. Nc3 {[%clk 0:00:51.2]} 23... a6
{[%clk 0:00:35.7]} 24. Nxe4 {[%clk 0:00:47.8]} 24... Bc6 {[%clk 0:00:22.7]} 25.
Ng5 {[%clk 0:00:46.6]} 25... e6 {[%clk 0:00:21.7]} 26. Qc7 {[%clk 0:00:44.3]}
26... Bd7 {[%clk 0:00:21.6]} 27. Bd4 {[%clk 0:00:38.7]} 27... Be8 {[%clk
0:00:21.6]} 28. Nxe6 {[%clk 0:00:30.5]} 28... fxe6 {[%clk 0:00:20.6]} 29. Bxe6+
{[%clk 0:00:31.4]} 29... Kh8 {[%clk 0:00:21.4]} 30. Qe7 {[%clk 0:00:31.9]} 30...
Nh5 {[%clk 0:00:03.7]} 31. Qf8# {[%clk 0:00:30.8]} 1-0